bitfinex/quotes_SOLUSD_20240905
["timestamp","ask_amount","ask_price","bid_price","bid_amount"]
[1725550613764,19.8978361,131.24,131.12,19.0655]
[1725550613959,7.6215,131.21,131.13,7.6258]
[1725550614175,20.0,131.2,131.13,7.6258]
[1725550614687,20.0,131.2,131.12,19.0655]
[1725550614859,27.6219,131.2,131.13,7.6255]
[1725550615183,20.0,131.2,131.13,7.6259]
[1725550615484,20.0,131.23,131.14,7.6252]
[1725550615782,7.6215,131.21,131.14,7.6252]
[1725550615987,20.0,131.2,131.15,45.0]
[1725550616363,0.8482361,131.24,131.15,95.0]
[1725550616564,8.4679361,131.24,131.17,7.6234]
[1725550616767,0.8482361,131.24,131.18,45.0]
[1725550617082,0.8482361,131.24,131.18,64.0566]
[1725550617285,0.8482361,131.24,131.18,71.6795]
[1725550617463,0.8482361,131.24,131.18,64.0566]
[1725550617657,0.8482361,131.24,131.19,1.52407166]
[1725550617883,0.3482361,131.24,131.19,1.52407166]
[1725550618386,0.3482361,131.24,131.18,45.0]
[1725550618685,0.3482361,131.24,131.22,19.0515]
[1725550618884,0.3482361,131.24,131.23,45.0]
[1725550619283,0.3482361,131.24,131.23,52.6202]
[1725550620789,0.3482361,131.24,131.23,45.0]
[1725550620978,0.3482361,131.24,131.2,7.6218]
[1725550621168,0.3482361,131.24,131.17,6.4017]
[1725550621584,0.3482361,131.24,131.2,19.0536]
[1725550621776,0.3482361,131.24,131.18,51.52369813]
[1725550621777,0.3482361,131.24,131.23,19.0505]
[1725550622296,0.3482361,131.24,131.2,7.6219]
[1725550622479,0.3482361,131.24,131.22,7.6207]
[1725550622682,0.3482361,131.24,131.23,46.52355233]
[1725550622886,0.3482361,131.24,131.23,54.14375233]
[1725550623187,0.3482361,131.24,131.23,69.2573]
[1725550624494,0.8482361,131.37,131.28,19.0426]
[1725550624674,0.8482361,131.37,131.29,45.0]
[1725550624876,8.4603361,131.37,131.29,45.0]
[1725550625207,8.4603361,131.37,131.29,52.6161]
[1725550625493,8.4603361,131.37,131.3,7.6161]
[1725550625805,0.8482361,131.37,131.29,45.0]
[1725550625997,0.8482361,131.37,131.29,52.6164]
[1725550626198,0.8482361,131.37,131.32,7.6145]
[1725550626371,0.8482361,131.37,131.34,7.6137]
[1725550626569,0.8482361,131.37,131.33,7.6142]
[1725550627267,0.8482361,131.37,131.34,45.0]
[1725550627467,0.8482361,131.37,131.34,52.6137]
[1725550627692,0.8482361,131.37,131.33,0.279145]
[1725550627900,0.8482361,131.37,131.31,50.0]
[1725550628277,0.8482361,131.37,131.32,22.0283]
[1725550628594,0.8482361,131.37,131.31,50.0]
[1725550628799,0.8482361,131.37,131.29,84.94450957]
[1725550628997,0.8482361,131.37,131.28,53.6882]
[1725550629200,0.8482361,131.37,131.31,19.0383]
[1725550630214,0.8482361,131.37,131.28,26.6594]
[1725550630377,7.6128,131.36,131.29,7.6164]
[1725550630572,20.0,131.35,131.29,7.6164]
[1725550630894,27.6133,131.35,131.28,19.0423]
[1725550631111,20.0,131.35,131.28,19.0423]
[1725550631284,27.6134,131.35,131.28,19.0423]
[1725550631788,20.0,131.35,131.28,26.659]
[1725550631988,20.0,131.35,131.29,7.6166]
[1725550632218,0.8482361,131.37,131.28,69.0423]
[1725550632519,0.8482361,131.37,131.33,7.6142]
[1725550632718,0.8482361,131.37,131.32,19.0363]
[1725550633085,0.8482361,131.37,131.32,26.6507]
[1725550633287,0.8482361,131.37,131.33,7.614]
[1725550633608,0.8482361,131.37,131.32,19.0363]
[1725550633609,0.8482361,131.37,131.34,7.6136]
[1725550634784,0.8482361,131.37,131.33,7.6142]
[1725550635091,0.8482361,131.37,131.35,7.6131]
[1725550635505,0.8482361,131.37,131.33,7.614]
[1725550635810,0.8482361,131.37,131.35,7.6131]
[1725550636201,0.8482361,131.37,131.36,7.6126]
[1725550636794,0.8482361,131.37,131.34,19.0342]
[1725550637398,0.8482361,131.37,131.36,7.6126]
[1725550637705,0.8482361,131.37,131.36,52.6126]
[1725550638089,0.8482361,131.37,131.35,7.613]
[1725550638286,0.8482361,131.37,131.31,19.038]
[1725550638509,8.4608361,131.37,131.3,7.6159]
[1725550638819,8.4603361,131.37,131.29,7.6166]
[1725550638988,0.8482361,131.37,131.3,51.25880959]
[1725550639194,0.8482361,131.37,131.32,19.037]
[1725550639603,0.8482361,131.37,131.3,7.6159]
[1725550639810,0.8482361,131.37,131.31,7.6151]
[1725550639994,0.8482361,131.37,131.28,50.0]
[1725550640295,0.8482361,131.37,131.34,19.0341]
[1725550640496,0.8482361,131.37,131.34,26.6478]
[1725550640705,0.8482361,131.37,131.32,7.6148]
[1725550640889,7.6127,131.36,131.28,19.0425]
[1725550641217,26.3175,131.35,131.29,7.6163]
[1725550641416,26.3175,131.35,131.25,57.1415]
[1725550641719,7.6142,131.34,131.26,7.6184]
[1725550641891,20.0,131.33,131.26,7.6184]
[1725550642085,26.3175,131.35,131.25,38.0946]
[1725550642086,6.3175,131.35,131.25,38.0946]
[1725550642287,6.3175,131.35,131.28,7.6173]
[1725550642493,15.0535,131.34,131.24,19.0485]
[1725550642696,20.0,131.33,131.24,19.0485]
[1725550642996,27.6145,131.33,131.24,19.0485]
[1725550643200,45.0,131.32,131.21,19.0533]
[1725550643408,7.6167,131.29,131.21,19.0533]
[1725550643611,45.0,131.32,131.21,19.0533]
[1725550643811,20.0,131.28,131.22,1.52273989]
[1725550643993,7.6162,131.3,131.22,7.6206]
[1725550644193,6.0262,131.28,131.21,26.6746]
[1725550644618,6.0262,131.28,131.17,16.6456]
[1725550644832,72.6179,131.27,131.19,7.6221]
[1725550645021,15.6285,131.26,131.19,7.6221]
[1725550645603,15.6285,131.26,131.2,0.84347057]
[1725550646127,20.0,131.25,131.13,274.7535]
[1725550646315,7.6217,131.21,131.12,19.0661]
[1725550646615,20.0,131.2,131.12,19.0661]
[1725550646804,20.0,131.2,131.13,7.6255]
[1725550646998,20.0,131.2,131.12,19.0661]
[1725550647198,7.6201,131.24,131.14,19.0626]
[1725550647618,20.0,131.23,131.15,0.64607973]
[1725550648424,20.0,131.24,131.17,7.6236]
[1725550648734,27.6197,131.24,131.18,0.64593197]
[1725550648907,15.6285,131.26,131.18,50.0]
[1725550649110,15.6285,131.26,131.2,7.6214]
[1725550649433,15.6285,131.26,131.21,9.14465492]
[1725550649602,15.6285,131.26,131.22,7.6205]
[1725550649799,6.0262,131.28,131.23,1.52371278]
[1725550649999,6.0262,131.28,131.24,1.52333526]
[1725550650228,6.0262,131.28,131.24,19.0481]
[1725550650407,6.0262,131.28,131.21,19.0528]
[1725550650728,13.644,131.28,131.21,26.6741]
[1725550651434,13.6435,131.28,131.21,26.674]
[1725550651717,20.0,131.27,131.21,26.674]
[1725550652330,20.0,131.27,131.22,1.52203571]
[1725550653229,20.0,131.27,131.18,38.1149]
[1725550653421,20.0,131.27,131.24,7.6194]
[1725550653603,20.0,131.27,131.23,26.6699]
[1725550654028,20.0,131.27,131.23,19.0499]
[1725550654233,20.0,131.27,131.2,26.6752]
[1725550654526,20.0,131.27,131.2,19.0539]
[1725550654527,45.0,131.26,131.2,19.0539]
[1725550654709,20.0,131.25,131.2,19.0539]
[1725550654904,20.0,131.25,131.19,7.6224]
[1725550655325,45.0,131.24,131.18,7.6229]
[1725550655933,45.0,131.24,131.19,7.6224]
[1725550656109,20.0,131.25,131.2,1.45075828]
[1725550656311,20.0,131.27,131.21,1.45212206]
[1725550656512,6.0262,131.28,131.23,19.0497]
[1725550656733,13.6435,131.28,131.22,7.6206]
[1725550657030,6.0262,131.28,131.22,7.6203]
[1725550657213,6.0262,131.28,131.23,1.46429241]
[1725550657418,6.0262,131.28,131.17,88.1158]
[1725550657419,6.0262,131.28,131.24,1.46418083]
[1725550657617,16.1546,131.31,131.27,7.6178]
[1725550657618,22.2565,131.31,131.27,7.6178]
[1725550657943,22.2565,131.31,131.26,7.6183]
[1725550658443,22.2565,131.31,131.25,26.666]
[1725550658608,29.872,131.31,131.25,19.0471]
[1725550658806,22.2565,131.31,131.22,19.051]
[1725550659009,22.2565,131.31,131.22,26.6713]
[1725550659010,7.6168,131.29,131.22,26.6713]
[1725550659239,20.0,131.3,131.24,7.6195]
[1725550659414,7.6169,131.29,131.22,19.051]
[1725550659610,20.0,131.28,131.23,1.46847049]
[1725550659818,20.0,131.28,131.25,7.6188]
[1725550660014,20.0,131.28,131.24,19.0483]
[1725550660214,20.0,131.3,131.21,19.0527]
[1725550660426,20.0,131.3,131.21,26.6739]
[1725550660427,7.6176,131.28,131.21,26.6739]
[1725550660632,65.0,131.27,131.2,7.6217]
[1725550660833,65.0,131.27,131.18,19.0566]
[1725550660834,7.6194,131.25,131.18,19.0566]
[1725550661046,52.6196,131.24,131.18,19.0566]
[1725550661230,52.6196,131.24,131.17,7.6235]
[1725550661231,6.3256,131.23,131.17,7.6235]
[1725550661416,51.3256,131.23,131.17,7.6235]
[1725550662023,75.4303,131.23,131.16,7.6242]
[1725550662238,20.0,131.22,131.15,19.0614]
[1725550662537,20.0,131.22,131.17,7.6232]
[1725550662723,20.0,131.22,131.17,26.6819]
[1725550662922,20.0,131.22,131.19,7.6223]
[1725550663131,22.8097,131.23,131.19,7.6223]
[1725550663841,45.0,131.22,131.16,7.6241]
[1725550664138,45.0,131.22,131.14,19.0625]
[1725550664316,45.0,131.22,131.14,26.6875]
[1725550664317,27.6215,131.21,131.14,26.6875]
[1725550664517,20.0,131.21,131.16,7.6242]
[1725550664737,20.0,131.21,131.16,7.6241]
[1725550665239,20.0,131.21,131.15,7.6247]
[1725550665422,45.0,131.2,131.15,7.6247]
[1725550665951,20.0,131.21,131.17,7.6236]
[1725550666150,20.0,131.22,131.18,1.52436676]
[1725550666445,20.0,131.22,131.17,7.6236]
[1725550666620,20.0,131.22,131.16,26.684]
[1725550666817,20.0,131.22,131.17,7.6233]
[1725550667023,22.5208,131.27,131.21,7.6209]
[1725550667618,7.6198,131.24,131.18,7.6229]
[1725550667820,7.6198,131.24,131.17,26.6814]
[1725550667821,7.6199,131.24,131.17,26.6814]
[1725550668029,7.6192,131.25,131.17,19.0582]
[1725550668430,20.0,131.24,131.19,7.6221]
[1725550668633,20.0,131.25,131.19,7.6221]
[1725550668840,20.0,131.25,131.17,19.0582]
[1725550669024,7.6196,131.24,131.18,7.6229]
[1725550669747,45.0,131.23,131.17,19.0582]
[1725550669948,45.0,131.25,131.17,26.6817]
[1725550670153,7.6209,131.22,131.17,19.0582]
[1725550670449,45.0,131.21,131.17,19.0582]
[1725550671230,45.0,131.21,131.17,26.6818]
[1725550671738,45.0,131.21,131.17,19.0582]
[1725550672153,45.0,131.21,131.16,7.624]
[1725550672448,45.0,131.21,131.14,19.0623]
[1725550672653,27.6219,131.2,131.14,26.6873]
[1725550672951,45.0,131.19,131.14,26.6873]
[1725550673728,20.0,131.2,131.15,7.6247]
[1725550673928,20.0,131.2,131.15,8.89184153]
[1725550674134,22.5208,131.27,131.18,19.0568]
[1725550674344,20.0,131.26,131.18,19.0568]
[1725550674728,7.6203,131.23,131.15,19.0608]
[1725550674955,20.0,131.22,131.15,19.0608]
[1725550675535,20.0,131.24,131.15,19.0608]
[1725550675852,7.6203,131.23,131.17,7.6232]
[1725550676027,65.0,131.22,131.17,7.6232]
[1725550677174,65.0,131.22,131.18,9.14746936]
[1725550677453,65.0,131.22,131.11,120.14253265]
[1725550677454,20.0,131.22,131.19,19.0561]
[1725550677659,22.5208,131.27,131.22,7.6204]
[1725550678657,30.1387,131.27,131.21,26.6735]
[1725550678840,45.0,131.26,131.15,38.124]
[1725550679046,7.6192,131.25,131.19,7.6225]
[1725550679357,45.0,131.24,131.19,7.6225]
[1725550679566,45.0,131.24,131.15,57.1852]
[1725550679731,45.0,131.24,131.15,38.124]
[1725550679956,20.0,131.23,131.15,38.124]
[1725550680357,27.6202,131.23,131.17,26.6823]
[1725550680992,27.6202,131.23,131.17,26.6824]
[1725550681157,45.0,131.22,131.14,26.6876]
[1725550681357,20.0,131.21,131.14,26.6876]
[1725550681591,52.6223,131.2,131.14,26.6876]
[1725550681785,27.6225,131.19,131.14,26.6876]
[1725550682079,20.0,131.19,131.14,19.0626]
[1725550682265,20.0,131.19,131.16,19.0602]
[1725550682471,22.5208,131.27,131.14,38.125]
[1725550682671,7.6194,131.25,131.19,7.6221]
[1725550682873,22.5208,131.27,131.2,20.57591866]
[1725550683071,7.6185,131.26,131.21,7.621]
[1725550683267,22.5208,131.27,131.22,7.6207]
[1725550683466,22.5208,131.27,131.23,1.52387278]
[1725550683681,21.5386,131.31,131.25,7.6185]
[1725550684386,21.5386,131.31,131.26,9.14187855]
[1725550684587,6.1258,131.31,131.27,1.5233739]
[1725550684795,30.5915,131.35,131.29,7.6164]
[1725550684960,22.978,131.35,131.3,9.13924138]
[1725550685164,22.978,131.35,131.3,19.0399]
[1725550685666,0.8482361,131.37,131.31,7.6155]
[1725550686591,7.6127,131.36,131.26,19.0447]
[1725550687071,7.6138,131.34,131.26,26.6631]
[1725550687275,7.6132,131.35,131.27,7.6177]
[1725550687686,20.0,131.34,131.27,7.6177]
[1725550687894,20.0,131.34,131.28,8.20827023]
[1725550688092,20.0,131.34,131.28,7.6171]
[1725550688406,20.0,131.34,131.26,26.6625]
[1725550688612,20.0,131.34,131.27,7.6176]
[1725550688780,20.0,131.35,131.27,7.6176]
[1725550688985,7.6127,131.36,131.26,19.0447]
[1725550689210,20.0,131.35,131.26,19.0447]
[1725550689514,7.6138,131.34,131.27,7.6174]
[1725550689687,20.0,131.33,131.26,19.0447]
[1725550689881,20.0,131.35,131.29,19.0418]
[1725550690384,0.8482361,131.37,131.29,19.0418]
[1725550690914,7.6149,131.32,131.25,16.4067]
[1725550691089,7.6149,131.32,131.24,7.619]
[1725550691409,15.2184,131.31,131.21,16.0202]
[1725550691709,26.4788,131.3,131.17,25.5679]
[1725550692025,71.4788,131.3,131.17,19.0589]
[1725550692320,71.4788,131.3,131.18,0.38629276]
[1725550692696,71.4788,131.3,131.2,7.6219]
[1725550693004,71.4788,131.3,131.21,0.38622898]
[1725550693214,6.4788,131.3,131.21,0.38622898]
[1725550693513,6.4788,131.3,131.25,7.6188]
[1725550693698,6.4788,131.3,131.26,0.38608185]
[1725550694012,13.9849,131.34,131.27,7.6177]
[1725550694202,7.6145,131.33,131.26,26.6641]
[1725550694403,7.6145,131.33,131.27,0.38613315]
[1725550694592,7.6152,131.32,131.26,19.0458]
[1725550694792,13.9847,131.34,131.27,8.00465637]
[1725550694992,13.9847,131.34,131.27,7.6178]
[1725550695492,20.0,131.33,131.27,7.6178]
[1725550695700,20.0,131.33,131.26,26.664]
[1725550695907,6.3709,131.34,131.26,19.0458]
[1725550696110,6.3709,131.34,131.29,19.0416]
[1725550696421,6.3709,131.34,131.3,1.5205235]
[1725550696613,6.3709,131.34,131.29,19.0416]
[1725550696932,13.9848,131.34,131.27,7.6177]
[1725550697109,7.6144,131.33,131.27,7.6177]
[1725550697418,20.0,131.32,131.27,7.6177]
[1725550698202,20.0,131.33,131.26,19.0458]
[1725550698420,20.0,131.33,131.28,7.6172]
[1725550698828,20.0,131.33,131.27,7.6177]
[1725550699034,7.6155,131.31,131.26,19.0458]
[1725550699200,20.0,131.33,131.26,26.6636]
[1725550699201,27.6145,131.33,131.26,26.6636]
[1725550699538,52.6152,131.32,131.26,26.6641]
[1725550699897,45.0,131.32,131.24,7.6192]
[1725550700214,7.6161,131.3,131.24,7.6192]
[1725550700415,20.0,131.31,131.25,19.0469]
[1725550700632,20.0,131.31,131.26,8.49261723]
[1725550700927,20.0,131.31,131.28,7.6172]
[1725550701130,20.0,131.33,131.29,7.6166]
[1725550701294,20.0,131.33,131.28,1.51947445]
[1725550701726,20.0,131.33,131.28,9.13657445]
[1725550701914,20.0,131.33,131.27,19.0442]
[1725550702221,20.0,131.33,131.28,7.6171]
[1725550702641,6.3709,131.34,131.3,7.6159]
[1725550702947,6.5378,131.38,131.29,19.0413]
[1725550703242,6.5378,131.38,131.31,7.615]
[1725550703243,8.4606361,131.37,131.31,7.615]
[1725550703920,7.6129,131.36,131.3,7.616]
[1725550704114,7.6129,131.36,131.31,7.6155]
[1725550704714,8.4604361,131.37,131.31,7.6155]
[1725550705136,8.4604361,131.37,131.32,7.6149]
[1725550705137,0.8482361,131.37,131.32,7.6149]
[1725550705345,65.8482361,131.37,131.33,7.6143]
[1725550705543,20.8482361,131.37,131.33,7.6143]
[1725550706622,20.8482361,131.37,131.32,7.6147]
[1725550706849,28.4603361,131.37,131.32,7.6147]
[1725550707022,28.4603361,131.37,131.31,26.6536]
[1725550707622,28.4603361,131.37,131.32,7.6149]
[1725550707933,0.8482361,131.37,131.34,7.6134]
[1725550708736,0.8482361,131.37,131.33,26.6496]
[1725550709629,0.8482361,131.37,131.33,19.0354]
[1725550709816,0.8482361,131.37,131.33,26.6497]
[1725550710219,0.8482361,131.37,131.34,7.6137]
[1725550710427,0.8482361,131.37,131.35,7.6132]
[1725550710738,0.8482361,131.37,131.34,9.03911565]
[1725550711243,0.8482361,131.37,131.35,7.6131]
[1725550711944,0.8482361,131.37,131.34,7.6137]
[1725550712158,0.8482361,131.37,131.35,1.27147934]
[1725550712319,0.8482361,131.37,131.35,20.55486209]
[1725550712653,0.8482361,131.37,131.36,9.13484619]
[1725550713218,0.8482361,131.37,131.36,7.6126]
[1725550713918,0.8482361,131.37,131.36,9.13446642]
[1725550714114,0.8482361,131.37,131.36,7.6126]
[1725550715833,0.8482361,131.37,131.35,26.6456]
[1725550716031,0.8482361,131.37,131.36,7.6126]
[1725550717853,0.8482361,131.37,131.35,19.0325]
[1725550718526,0.8482361,131.37,131.36,7.6126]
[1725550719932,0.8482361,131.37,131.36,9.13450685]
[1725550720537,0.8482361,131.37,131.36,7.6126]
[1725550721050,0.8482361,131.37,131.35,26.6453]
[1725550721429,0.8482361,131.37,131.34,7.6136]
[1725550721749,0.8482361,131.37,131.35,7.6131]
[1725550721921,0.8482361,131.37,131.36,26.6442]
[1725550722640,0.8482361,131.37,131.35,7.6129]
[1725550723738,0.8482361,131.37,131.36,7.6126]
[1725550723947,0.8482361,131.37,131.36,9.13474519]
[1725550724448,0.8482361,131.37,131.35,26.6457]
[1725550725853,0.8482361,131.37,131.36,7.6126]
[1725550726236,0.8482361,131.37,131.35,19.0326]
[1725550726550,0.8482361,131.37,131.33,19.036]
[1725550726853,0.8482361,131.37,131.33,26.6501]
[1725550727527,0.8482361,131.37,131.33,19.036]
[1725550727848,0.8482361,131.37,131.34,7.6137]
[1725550728029,0.8482361,131.37,131.33,19.036]
[1725550728230,0.8482361,131.37,131.34,7.6136]
[1725550728830,0.8482361,131.37,131.36,7.6126]
[1725550729029,0.8482361,131.37,131.36,8.79597816]
[1725550730431,0.8482361,131.37,131.36,7.6126]
[1725550731555,0.8482361,131.37,131.36,9.1319727]
[1725550732457,0.8482361,131.37,131.36,7.6126]
[1725550733633,0.8482361,131.37,131.36,8.72202403]
[1725550734556,0.8482361,131.37,131.36,7.6126]
[1725550741135,0.8482361,131.37,131.36,8.10905445]
[1725550741444,0.8482361,131.37,131.36,7.6126]
[1725550745480,0.8482361,131.37,131.36,9.13316394]
[1725550745946,0.8482361,131.37,131.36,17.14841579]
[1725550746149,0.8482361,131.37,131.36,9.13231185]
[1725550746347,0.8482361,131.37,131.36,18.66808234]
[1725550746545,0.8482361,131.37,131.36,17.14841579]
[1725550747142,0.8482361,131.37,131.36,18.6703166]
[1725550747371,0.8482361,131.37,131.36,17.14841579]
[1725550747541,0.8482361,131.37,131.36,17.14838016]
[1725550747942,3.61e-05,131.37,131.36,128.12698016]
[1725550748142,20.0,131.57,131.36,128.12698016]
[1725550748143,15.4156,131.49,131.44,19.019]
[1725550748352,15.4156,131.49,131.45,7.6072]
[1725550748566,23.0207,131.49,131.44,26.6268]
[1725550749173,7.3165361,131.5,131.46,19.017]
[1725550749359,0.8482361,131.5,131.44,38.0381]
[1725550749678,0.8482361,131.5,131.44,47.57034978]
[1725550749974,0.8482361,131.5,131.47,7.6061]
[1725550750174,8.4529361,131.5,131.44,9.52969808]
[1725550750478,0.8482361,131.5,131.41,88.0472]
[1725550750783,0.8482361,131.5,131.45,7.6072]
[1725550751078,0.8482361,131.5,131.42,9.53074674]
[1725550751079,7.6063,131.47,131.42,9.53074674]
[1725550751285,7.6069,131.46,131.42,9.53074674]
[1725550751579,7.6081,131.44,131.38,26.639]
[1725550751881,7.6087,131.43,131.38,26.639]
[1725550752055,7.6087,131.43,131.38,29.48943471]
[1725550752567,7.609,131.43,131.38,10.46183471]
[1725550752767,7.609,131.43,131.38,7.6114]
[1725550753162,7.6092,131.42,131.37,26.6418]
[1725550753486,7.6098,131.41,131.37,19.03]
[1725550753650,7.6087,131.43,131.37,26.642]
[1725550753857,7.6087,131.43,131.37,26.6415]
[1725550754360,20.0,131.45,131.37,26.6415]
[1725550754361,7.6093,131.42,131.37,26.6415]
[1725550754556,7.6087,131.43,131.38,7.6114]
[1725550754988,7.6082,131.44,131.39,7.6107]
[1725550755149,20.0,131.45,131.39,19.0269]
[1725550755351,20.0,131.45,131.41,7.6092]
[1725550755574,20.0,131.45,131.39,19.0269]
[1725550755749,7.6095,131.42,131.37,7.6119]
[1725550755949,20.0,131.45,131.36,19.0308]
[1725550756557,45.0,131.44,131.36,19.0308]
[1725550756759,7.6093,131.42,131.36,26.6429]
[1725550757165,7.6097,131.41,131.36,19.0308]
[1725550757365,7.6097,131.41,131.36,26.6433]
[1725550757554,7.6089,131.43,131.36,19.0308]
[1725550757768,20.0,131.42,131.38,7.6113]
[1725550757963,20.0,131.42,131.36,19.0308]
[1725550758161,27.6097,131.42,131.37,7.6119]
[1725550758356,27.6097,131.42,131.36,19.0308]
[1725550758357,36.2587,131.42,131.36,19.0308]
[1725550758569,45.0,131.41,131.33,21.88701139]
[1725550758785,7.611,131.39,131.34,7.6134]
[1725550759287,7.6132,131.35,131.3,19.04]
[1725550759480,26.2794,131.4,131.3,19.04]
[1725550759691,45.0,131.39,131.32,7.6145]
[1725550759889,27.6115,131.38,131.32,7.6145]
[1725550760051,27.6115,131.38,131.33,7.6143]
[1725550760379,27.6115,131.38,131.32,7.6148]
[1725550761174,7.6131,131.36,131.3,19.04]
[1725550761582,7.6131,131.36,131.3,26.6556]
[1725550761789,7.6133,131.35,131.3,26.6556]
[1725550761986,20.0,131.38,131.27,19.0445]
[1725550761987,52.6138,131.34,131.27,19.0445]
[1725550762164,52.6138,131.34,131.28,7.6167]
[1725550762365,23.9663,131.35,131.3,7.6159]
[1725550763283,16.3531,131.35,131.3,7.6159]
[1725550765289,16.3531,131.35,131.29,26.6575]
[1725550765667,7.6145,131.33,131.29,19.0409]
[1725550765981,16.3531,131.35,131.29,19.0409]
[1725550766467,7.6139,131.34,131.29,26.6571]
[1725550766663,23.9664,131.35,131.3,7.6161]
[1725550766995,16.1721,131.39,131.31,19.0385]
[1725550767284,16.1721,131.39,131.32,1.42329271]
[1725550767486,7.6116,131.38,131.33,9.03764541]
[1725550767989,7.6116,131.38,131.33,7.614]
[1725550768562,23.7832,131.39,131.34,7.6137]
[1725550768785,20.0,131.38,131.34,7.6137]
[1725550769688,20.0,131.38,131.33,26.6499]
[1725550770086,27.6115,131.38,131.33,26.6499]
[1725550770387,27.6115,131.38,131.34,9.1362471]
[1725550770388,20.0,131.38,131.34,9.1362471]
[1725550770791,20.0,131.38,131.34,7.6137]
[1725550771681,20.0,131.38,131.3,19.0392]
[1725550772175,7.614,131.34,131.3,26.6552]
[1725550772375,7.6134,131.35,131.3,26.6552]
[1725550772571,7.6141,131.34,131.3,19.0392]
[1725550773280,7.6131,131.36,131.31,7.6155]
[1725550773592,20.0,131.35,131.33,7.6143]
[1725550773788,7.6121,131.37,131.33,1.52264362]
[1725550773984,27.6128,131.36,131.32,19.0372]
[1725550774189,45.0,131.35,131.32,19.0372]
[1725550774372,20.0,131.36,131.32,19.0372]
[1725550775174,20.0,131.36,131.33,8.69528364]
[1725550775374,20.0,131.36,131.33,7.6143]
[1725550775579,20.0,131.37,131.33,7.6143]
[1725550775986,20.0,131.37,131.34,19.0341]
[1725550776188,20.0,131.38,131.34,19.0341]
[1725550776388,20.0,131.39,131.36,7.6126]
[1725550777375,20.0,131.39,131.35,7.613]
[1725550778101,20.0,131.39,131.34,26.6475]
[1725550778400,45.0,131.38,131.34,26.6475]
[1725550779076,52.6117,131.38,131.34,19.0341]
[1725550779275,7.6117,131.38,131.34,19.63796893]
[1725550779701,7.6117,131.38,131.34,20.43160903]
[1725550780003,27.6111,131.39,131.34,28.04490903]
[1725550780211,27.6111,131.39,131.34,19.0341]
[1725550780508,27.6111,131.39,131.34,26.6476]
[1725550780509,27.6113,131.39,131.34,26.6476]
[1725550781477,7.6117,131.38,131.34,19.0341]
[1725550781678,27.6111,131.39,131.34,27.58631182]
[1725550781989,27.6111,131.39,131.34,26.6478]
[1725550782984,20.0,131.39,131.34,19.0341]
[1725550783183,7.6127,131.36,131.31,26.6529]
[1725550783387,7.6138,131.35,131.31,19.0378]
[1725550783686,7.6138,131.35,131.31,26.6532]
[1725550783890,7.6129,131.36,131.32,7.6148]
[1725550784292,7.6129,131.36,131.31,26.6531]
[1725550784699,7.6122,131.37,131.32,7.6148]
[1725550785308,7.6122,131.37,131.33,0.81302495]
[1725550785505,7.6122,131.37,131.32,7.6148]
[1725550785689,20.0,131.39,131.33,7.6141]
[1725550786008,20.0,131.39,131.28,56.5954]
[1725550786009,7.6131,131.36,131.32,19.0361]
[1725550786183,19.0288,131.38,131.29,19.0409]
[1725550786383,20.0,131.35,131.26,53.5035]
[1725550786589,20.0,131.39,131.26,53.5035]
[1725550786590,7.6147,131.33,131.26,53.5035]
[1725550786988,7.6147,131.33,131.28,26.66]
[1725550787193,7.6161,131.3,131.24,6.3859]
[1725550787402,7.6157,131.31,131.25,19.0463]
[1725550787897,45.0,131.32,131.27,7.6178]